[Event "Titled Tuesday Blitz September 28 2021"]
[White "Jain Kashish Manoj"]
[Black "Le, Tuan Minh"]
[WhiteFideId "35081098"]
[BlackFideId "12401153"]
[WhiteElo "1681"]
[BlackElo "2450"]
[Result "1-0"]
[Round "01"]
[TimeControl "180+1"]
[Date "2021.09.28"]
[WhiteClock "0:00:12"]
[BlackClock "0:00:01"]

1. Nf3 {[%clk 0:03:00]}  d5 {[%clk 0:03:00]} 2. g3 {[%clk 0:02:59]}  Nf6 {[%clk 0:03:00]} 3. Bg2 {[%clk 0:02:59]}  Bg4 {[%clk 0:03:01]} 4. O-O {[%clk 0:02:59]}  c6 {[%clk 0:03:01]} 5. d3 {[%clk 0:02:57]}  Nbd7 {[%clk 0:03:01]} 6. h3 {[%clk 0:02:57]}  Bh5 {[%clk 0:03:01]} 7. Qe1 {[%clk 0:02:57]}  e5 {[%clk 0:02:57]} 8. e4 {[%clk 0:02:58]}  dxe4 {[%clk 0:02:57]} 9. dxe4 {[%clk 0:02:59]}  Bc5 {[%clk 0:02:55]} 10. Nbd2 {[%clk 0:02:58]}  O-O {[%clk 0:02:55]} 11. a4 {[%clk 0:02:55]}  Qc7 {[%clk 0:02:54]} 12. Nh4 {[%clk 0:02:47]}  Rfe8 {[%clk 0:02:52]} 13. Nb3 {[%clk 0:02:45]}  Bf8 {[%clk 0:02:44]} 14. a5 {[%clk 0:02:38]}  c5 {[%clk 0:02:34]} 15. Nd2 {[%clk 0:02:20]}  c4 {[%clk 0:02:31]} 16. b3 {[%clk 0:02:11]}  cxb3 {[%clk 0:02:25]} 17. cxb3 {[%clk 0:02:12]}  Red8 {[%clk 0:01:59]} 18. Bb2 {[%clk 0:01:47]}  Nc5 {[%clk 0:01:57]} 19. Nc4 {[%clk 0:01:30]}  Nxb3 {[%clk 0:01:54]} 20. Ra4 {[%clk 0:01:19]}  Nd4 {[%clk 0:01:16]} 21. Nf5 {[%clk 0:01:11]}  Rac8 {[%clk 0:00:33]} 22. Nxe5 {[%clk 0:00:55]}  Ne2+ {[%clk 0:00:22]} 23. Kh2 {[%clk 0:00:51]}  Qc2 {[%clk 0:00:22]} 24. Qa1 {[%clk 0:00:49]}  Nc3 {[%clk 0:00:20]} 25. Rc4 {[%clk 0:00:18]}  Rxc4 {[%clk 0:00:20]} 26. Nxc4 {[%clk 0:00:19]}  Ncxe4 {[%clk 0:00:18]} 27. Nce3 {[%clk 0:00:19]}  Qd3 {[%clk 0:00:13]} 28. g4 {[%clk 0:00:18]}  Bg6 {[%clk 0:00:13]} 29. Rd1 {[%clk 0:00:18]}  Nd2 {[%clk 0:00:08]} 30. Bxf6 {[%clk 0:00:15]}  gxf6 {[%clk 0:00:08]} 31. Qxf6 {[%clk 0:00:16]}  Re8 {[%clk 0:00:03]} 32. Nd5 {[%clk 0:00:12]}  Nf3+ {[%clk 0:00:01]} 33. Bxf3 {[%clk 0:00:12]} 1-0


[Site "https://www.chess.com"]

[Event "Titled Tuesday Blitz September 28 2021"]
[White "Kollars, Dmitrij"]
[Black "Vivas Zamora, Fabian Ernesto"]
[WhiteFideId "12909572"]
[BlackFideId "3902480"]
[WhiteElo "2584"]
[BlackElo "1966"]
[Result "1-0"]
[Round "01"]
[TimeControl "180+1"]
[Date "2021.09.28"]
[WhiteClock "0:00:44"]
[BlackClock "0:00:02"]

1. Nf3 {[%clk 0:02:57]}  Nf6 {[%clk 0:02:59]} 2. d4 {[%clk 0:02:56]}  g6 {[%clk 0:02:55]} 3. Nbd2 {[%clk 0:02:53]}  c5 {[%clk 0:02:44]} 4. dxc5 {[%clk 0:02:50]}  Na6 {[%clk 0:02:43]} 5. e4 {[%clk 0:02:44]}  Nxc5 {[%clk 0:02:39]} 6. e5 {[%clk 0:02:44]}  Nfe4 {[%clk 0:02:26]} 7. Nxe4 {[%clk 0:02:35]}  Nxe4 {[%clk 0:02:27]} 8. Bc4 {[%clk 0:02:33]}  Qa5+ {[%clk 0:02:14]} 9. c3 {[%clk 0:02:26]}  Qc5 {[%clk 0:01:30]} 10. Qd4 {[%clk 0:02:23]}  Qxd4 {[%clk 0:01:26]} 11. cxd4 {[%clk 0:02:24]}  e6 {[%clk 0:01:12]} 12. Be3 {[%clk 0:02:06]}  d5 {[%clk 0:01:11]} 13. Bd3 {[%clk 0:02:04]}  Bd7 {[%clk 0:00:56]} 14. Ke2 {[%clk 0:02:02]}  Be7 {[%clk 0:00:40]} 15. Ne1 {[%clk 0:02:02]}  f6 {[%clk 0:00:21]} 16. f3 {[%clk 0:01:55]}  Ng5 {[%clk 0:00:21]} 17. exf6 {[%clk 0:01:43]}  Bxf6 {[%clk 0:00:21]} 18. Nc2 {[%clk 0:01:43]}  Nf7 {[%clk 0:00:19]} 19. Rac1 {[%clk 0:01:37]}  Ke7 {[%clk 0:00:14]} 20. Na3 {[%clk 0:01:36]}  Rhc8 {[%clk 0:00:13]} 21. Nb5 {[%clk 0:01:36]}  a6 {[%clk 0:00:11]} 22. Nc3 {[%clk 0:01:36]}  Nd6 {[%clk 0:00:11]} 23. Kf2 {[%clk 0:01:32]}  Nc4 {[%clk 0:00:11]} 24. b3 {[%clk 0:01:26]}  Nxe3 {[%clk 0:00:11]} 25. Kxe3 {[%clk 0:01:27]}  Kd6 {[%clk 0:00:11]} 26. f4 {[%clk 0:01:26]}  g5 {[%clk 0:00:11]} 27. g3 {[%clk 0:01:25]}  h5 {[%clk 0:00:11]} 28. Ne2 {[%clk 0:01:24]}  h4 {[%clk 0:00:11]} 29. gxh4 {[%clk 0:01:21]}  gxh4 {[%clk 0:00:08]} 30. Rxc8 {[%clk 0:01:18]}  Rxc8 {[%clk 0:00:08]} 31. Rg1 {[%clk 0:01:19]}  Ke7 {[%clk 0:00:06]} 32. Rg6 {[%clk 0:01:17]}  Rh8 {[%clk 0:00:05]} 33. Ng1 {[%clk 0:01:09]}  Kf7 {[%clk 0:00:04]} 34. Rg2 {[%clk 0:01:03]}  Bb5 {[%clk 0:00:04]} 35. Bxb5 {[%clk 0:01:01]}  axb5 {[%clk 0:00:05]} 36. Rc2 {[%clk 0:01:01]}  Ra8 {[%clk 0:00:05]} 37. Nf3 {[%clk 0:01:01]}  Kg6 {[%clk 0:00:05]} 38. h3 {[%clk 0:00:49]}  Kf5 {[%clk 0:00:04]} 39. Nh2 {[%clk 0:00:49]}  Rg8 {[%clk 0:00:03]} 40. Ng4 {[%clk 0:00:49]}  Rxg4 {[%clk 0:00:03]} 41. hxg4+ {[%clk 0:00:49]}  Kxg4 {[%clk 0:00:04]} 42. Rg2+ {[%clk 0:00:49]}  Kf5 {[%clk 0:00:03]} 43. Rg8 {[%clk 0:00:48]}  h3 {[%clk 0:00:03]} 44. Rg3 {[%clk 0:00:47]}  h2 {[%clk 0:00:03]} 45. Rh3 {[%clk 0:00:48]}  Kg4 {[%clk 0:00:03]} 46. Rxh2 {[%clk 0:00:48]}  Bh4 {[%clk 0:00:03]} 47. Rc2 {[%clk 0:00:44]}  Bg3 {[%clk 0:00:03]} 48. Rc5 {[%clk 0:00:43]}  Bxf4+ {[%clk 0:00:03]} 49. Kd3 {[%clk 0:00:44]}  b4 {[%clk 0:00:04]} 50. Rb5 {[%clk 0:00:44]}  Bd6 {[%clk 0:00:03]} 51. Rb6 {[%clk 0:00:44]}  Be7 {[%clk 0:00:02]} 52. Rxe6 {[%clk 0:00:45]}  Bf8 {[%clk 0:00:02]} 53. Rb6 {[%clk 0:00:44]} 1-0


[Site "https://www.chess.com"]

[Event "Titled Tuesday Blitz September 28 2021"]
[White "Kotepalli, Sai Nirupama"]
[Black "Indjic, Aleksandar"]
[WhiteFideId "5039444"]
[BlackFideId "911925"]
[WhiteElo "2438"]
[BlackElo "2643"]
[Result "0-1"]
[Round "01"]
[TimeControl "180+1"]
[Date "2021.09.28"]
[WhiteClock "0:00:44"]
[BlackClock "0:01:15"]

1. e4 {[%clk 0:02:09]}  d5 {[%clk 0:02:55]} 2. exd5 {[%clk 0:02:09]}  Qxd5 {[%clk 0:02:56]} 3. d4 {[%clk 0:02:09]}  e5 {[%clk 0:02:54]} 4. dxe5 {[%clk 0:02:09]}  Qxd1+ {[%clk 0:02:50]} 5. Kxd1 {[%clk 0:02:08]}  Nc6 {[%clk 0:02:49]} 6. Nf3 {[%clk 0:02:07]}  Bg4 {[%clk 0:02:48]} 7. Bd3 {[%clk 0:02:07]}  O-O-O {[%clk 0:02:45]} 8. Ke2 {[%clk 0:02:07]}  Nxe5 {[%clk 0:02:44]} 9. Be3 {[%clk 0:02:07]}  Bxf3+ {[%clk 0:02:25]} 10. gxf3 {[%clk 0:02:06]}  Nxd3 {[%clk 0:02:26]} 11. cxd3 {[%clk 0:02:06]}  g6 {[%clk 0:02:25]} 12. Nd2 {[%clk 0:02:05]}  Bg7 {[%clk 0:02:22]} 13. Nc4 {[%clk 0:02:05]}  Ne7 {[%clk 0:02:21]} 14. Rac1 {[%clk 0:02:00]}  b6 {[%clk 0:02:20]} 15. a4 {[%clk 0:02:00]}  Kb7 {[%clk 0:02:19]} 16. Rhd1 {[%clk 0:01:54]}  Rhe8 {[%clk 0:02:16]} 17. f4 {[%clk 0:01:52]}  Nf5 {[%clk 0:02:11]} 18. Kf3 {[%clk 0:01:51]}  Rd7 {[%clk 0:02:08]} 19. b4 {[%clk 0:01:48]}  a6 {[%clk 0:02:07]} 20. a5 {[%clk 0:01:45]}  b5 {[%clk 0:02:06]} 21. Nd2 {[%clk 0:01:29]}  Rxd3 {[%clk 0:02:03]} 22. Ne4 {[%clk 0:01:26]}  Rxd1 {[%clk 0:01:37]} 23. Nc5+ {[%clk 0:01:25]}  Kc6 {[%clk 0:01:36]} 24. Rxd1 {[%clk 0:01:24]}  Bf8 {[%clk 0:01:35]} 25. Nxa6 {[%clk 0:01:21]}  Nxe3 {[%clk 0:01:22]} 26. fxe3 {[%clk 0:01:21]}  Kb7 {[%clk 0:01:22]} 27. Nc5+ {[%clk 0:01:18]}  Bxc5 {[%clk 0:01:22]} 28. bxc5 {[%clk 0:01:19]}  Kc6 {[%clk 0:01:22]} 29. Rc1 {[%clk 0:01:17]}  Ra8 {[%clk 0:01:22]} 30. Ke4 {[%clk 0:01:15]}  f6 {[%clk 0:01:19]} 31. Rd1 {[%clk 0:01:09]}  Rxa5 {[%clk 0:01:18]} 32. Rd8 {[%clk 0:01:09]}  b4 {[%clk 0:01:18]} 33. Rh8 {[%clk 0:01:06]}  Rxc5 {[%clk 0:01:17]} 34. Kd3 {[%clk 0:01:00]}  b3 {[%clk 0:01:17]} 35. e4 {[%clk 0:00:48]}  b2 {[%clk 0:01:14]} 36. Rb8 {[%clk 0:00:47]}  Rb5 {[%clk 0:01:14]} 37. Rxb5 {[%clk 0:00:47]}  Kxb5 {[%clk 0:01:15]} 38. Kc2 {[%clk 0:00:47]}  Kc5 {[%clk 0:01:15]} 39. Kxb2 {[%clk 0:00:44]}  Kd4 {[%clk 0:01:15]} 0-1


[Site "https://www.chess.com"]

[Event "Titled Tuesday Blitz September 28 2021"]
[White "Kovalchuk94"]
[Black "Kiltti, Jyrki"]
[BlackFideId "501204"]
[WhiteElo "2689"]
[BlackElo "2245"]
[Result "1-0"]
[Round "01"]
[TimeControl "180+1"]
[Date "2021.09.28"]
[WhiteClock "0:02:41"]
[BlackClock "0:01:20"]

1. d4 {[%clk 0:03:00]}  Nc6 {[%clk 0:02:58]} 2. d5 {[%clk 0:03:00]}  Ne5 {[%clk 0:02:52]} 3. e4 {[%clk 0:03:01]}  Ng6 {[%clk 0:02:51]} 4. f4 {[%clk 0:03:01]}  e5 {[%clk 0:02:50]} 5. dxe6 {[%clk 0:03:02]}  fxe6 {[%clk 0:02:50]} 6. Nf3 {[%clk 0:03:01]}  Bc5 {[%clk 0:02:48]} 7. Bd3 {[%clk 0:03:01]}  Nf6 {[%clk 0:02:46]} 8. Qe2 {[%clk 0:03:01]}  O-O {[%clk 0:02:42]} 9. Nc3 {[%clk 0:03:01]}  d5 {[%clk 0:02:40]} 10. e5 {[%clk 0:03:02]}  Nh5 {[%clk 0:02:32]} 11. g3 {[%clk 0:03:02]}  c6 {[%clk 0:02:20]} 12. Bd2 {[%clk 0:03:01]}  b5 {[%clk 0:02:19]} 13. O-O-O {[%clk 0:03:01]}  a5 {[%clk 0:02:04]} 14. Ng5 {[%clk 0:02:59]}  Nhxf4 {[%clk 0:01:39]} 15. gxf4 {[%clk 0:02:58]}  Nxf4 {[%clk 0:01:37]} 16. Bxf4 {[%clk 0:02:55]}  Rxf4 {[%clk 0:01:37]} 17. Bxh7+ {[%clk 0:02:56]}  Kf8 {[%clk 0:01:34]} 18. h4 {[%clk 0:02:51]}  Be7 {[%clk 0:01:27]} 19. Qh5 {[%clk 0:02:43]}  Qe8 {[%clk 0:01:20]} 20. Bg6 {[%clk 0:02:41]} 1-0


[Site "https://www.chess.com"]

[Event "Titled Tuesday Blitz September 28 2021"]
[White "Kuegel, Tobias"]
[Black "Samadov, Read"]
[WhiteFideId "4636295"]
[BlackFideId "13417444"]
[WhiteElo "2408"]
[BlackElo "2084"]
[Result "1/2-1/2"]
[Round "01"]
[TimeControl "180+1"]
[Date "2021.09.28"]
[WhiteClock "0:00:14"]
[BlackClock "0:00:08"]

1. e4 {[%clk 0:03:00]}  c5 {[%clk 0:02:58]} 2. c4 {[%clk 0:03:00]}  Nc6 {[%clk 0:02:57]} 3. Ne2 {[%clk 0:03:01]}  Nf6 {[%clk 0:02:55]} 4. Nbc3 {[%clk 0:03:00]}  e5 {[%clk 0:02:52]} 5. d3 {[%clk 0:03:00]}  Be7 {[%clk 0:02:50]} 6. g3 {[%clk 0:02:58]}  O-O {[%clk 0:02:50]} 7. Bg2 {[%clk 0:02:58]}  d6 {[%clk 0:02:50]} 8. O-O {[%clk 0:02:57]}  a6 {[%clk 0:02:41]} 9. Nd5 {[%clk 0:02:50]}  b5 {[%clk 0:02:29]} 10. b3 {[%clk 0:02:49]}  bxc4 {[%clk 0:02:18]} 11. bxc4 {[%clk 0:02:50]}  Rb8 {[%clk 0:02:17]} 12. Bd2 {[%clk 0:02:34]}  Nxd5 {[%clk 0:02:14]} 13. cxd5 {[%clk 0:02:33]}  Nd4 {[%clk 0:02:14]} 14. Nxd4 {[%clk 0:02:33]}  cxd4 {[%clk 0:02:13]} 15. Qa4 {[%clk 0:02:11]}  Rb2 {[%clk 0:02:07]} 16. Ba5 {[%clk 0:02:00]}  Qd7 {[%clk 0:02:03]} 17. Qa3 {[%clk 0:01:59]}  Qb5 {[%clk 0:01:48]} 18. Bc7 {[%clk 0:01:47]}  Rd2 {[%clk 0:01:39]} 19. Rfd1 {[%clk 0:01:34]}  Rxd1+ {[%clk 0:01:25]} 20. Rxd1 {[%clk 0:01:35]}  Bg4 {[%clk 0:00:58]} 21. f3 {[%clk 0:01:25]}  Qd7 {[%clk 0:00:57]} 22. Ba5 {[%clk 0:01:11]}  Bh3 {[%clk 0:00:55]} 23. Bd2 {[%clk 0:00:41]}  Bxg2 {[%clk 0:00:52]} 24. Kxg2 {[%clk 0:00:42]}  Qb5 {[%clk 0:00:46]} 25. Qb3 {[%clk 0:00:37]}  Qxb3 {[%clk 0:00:38]} 26. axb3 {[%clk 0:00:38]}  Rb8 {[%clk 0:00:33]} 27. b4 {[%clk 0:00:36]}  Rc8 {[%clk 0:00:32]} 28. Rc1 {[%clk 0:00:35]}  Rxc1 {[%clk 0:00:32]} 29. Bxc1 {[%clk 0:00:36]}  Kf8 {[%clk 0:00:32]} 30. Kf2 {[%clk 0:00:23]}  Ke8 {[%clk 0:00:32]} 31. Ke2 {[%clk 0:00:23]}  Kd7 {[%clk 0:00:32]} 32. Kd1 {[%clk 0:00:24]}  Kc7 {[%clk 0:00:32]} 33. Kc2 {[%clk 0:00:24]}  Kb6 {[%clk 0:00:32]} 34. Kb3 {[%clk 0:00:24]}  Kb5 {[%clk 0:00:33]} 35. Bd2 {[%clk 0:00:20]}  g6 {[%clk 0:00:31]} 36. g4 {[%clk 0:00:20]}  Bh4 {[%clk 0:00:31]} 37. h3 {[%clk 0:00:20]}  Bf2 {[%clk 0:00:20]} 38. Ka3 {[%clk 0:00:19]}  Be3 {[%clk 0:00:17]} 39. Be1 {[%clk 0:00:19]}  Bf4 {[%clk 0:00:16]} 40. Kb3 {[%clk 0:00:18]}  Bc1 {[%clk 0:00:15]} 41. Kc2 {[%clk 0:00:17]}  Be3 {[%clk 0:00:15]} 42. Kb3 {[%clk 0:00:17]}  h6 {[%clk 0:00:15]} 43. Ka3 {[%clk 0:00:16]}  Bf4 {[%clk 0:00:14]} 44. Kb3 {[%clk 0:00:16]}  Bg5 {[%clk 0:00:14]} 45. Ka3 {[%clk 0:00:16]}  Bd8 {[%clk 0:00:14]} 46. Kb3 {[%clk 0:00:16]}  h5 {[%clk 0:00:14]} 47. Bd2 {[%clk 0:00:16]}  hxg4 {[%clk 0:00:14]} 48. hxg4 {[%clk 0:00:15]}  Bh4 {[%clk 0:00:14]} 49. Ka3 {[%clk 0:00:14]}  f6 {[%clk 0:00:14]} 50. Kb3 {[%clk 0:00:14]}  g5 {[%clk 0:00:14]} 51. Ka3 {[%clk 0:00:14]}  Bf2 {[%clk 0:00:14]} 52. Kb3 {[%clk 0:00:14]}  Bg3 {[%clk 0:00:14]} 53. Ka3 {[%clk 0:00:14]}  Bh2 {[%clk 0:00:14]} 54. Kb3 {[%clk 0:00:14]}  Bg1 {[%clk 0:00:15]} 55. Ka3 {[%clk 0:00:14]}  Be3 {[%clk 0:00:15]} 56. Be1 {[%clk 0:00:13]}  Bc1+ {[%clk 0:00:15]} 57. Kb3 {[%clk 0:00:14]}  Bf4 {[%clk 0:00:13]} 58. Ka3 {[%clk 0:00:14]}  Be3 {[%clk 0:00:12]} 59. Kb3 {[%clk 0:00:14]}  Bc1 {[%clk 0:00:12]} 60. Kc2 {[%clk 0:00:13]}  Bf4 {[%clk 0:00:11]} 61. Kb3 {[%clk 0:00:13]}  Bh2 {[%clk 0:00:10]} 62. Bd2 {[%clk 0:00:13]}  Bg1 {[%clk 0:00:10]} 63. Ka3 {[%clk 0:00:14]}  Bf2 {[%clk 0:00:10]} 64. Kb3 {[%clk 0:00:13]}  Be3 {[%clk 0:00:09]} 65. Be1 {[%clk 0:00:14]}  Bf4 {[%clk 0:00:08]} 66. Ka3 {[%clk 0:00:13]}  Bh2 {[%clk 0:00:08]} 67. Kb3 {[%clk 0:00:14]}  Bf4 {[%clk 0:00:08]} 1/2-1/2


[Site "https://www.chess.com"]

[Event "Titled Tuesday Blitz September 28 2021"]
[White "Leitao, Rafael"]
[Black "Bethke, Richard"]
[WhiteFideId "2101246"]
[BlackFideId "12959243"]
[WhiteElo "2609"]
[BlackElo "2384"]
[Result "1-0"]
[Round "01"]
[TimeControl "180+1"]
[Date "2021.09.28"]
[WhiteClock "0:00:52"]
[BlackClock "0:01:10"]

1. c4 {[%clk 0:02:19]}  f5 {[%clk 0:02:57]} 2. g3 {[%clk 0:02:18]}  Nf6 {[%clk 0:02:54]} 3. Bg2 {[%clk 0:02:18]}  e6 {[%clk 0:02:54]} 4. Nc3 {[%clk 0:02:18]}  d5 {[%clk 0:02:54]} 5. d4 {[%clk 0:02:17]}  Bd6 {[%clk 0:02:52]} 6. Nf3 {[%clk 0:02:17]}  O-O {[%clk 0:02:45]} 7. O-O {[%clk 0:02:16]}  c6 {[%clk 0:02:42]} 8. b3 {[%clk 0:02:13]}  Ne4 {[%clk 0:02:38]} 9. Bb2 {[%clk 0:02:12]}  Nd7 {[%clk 0:02:37]} 10. e3 {[%clk 0:02:11]}  b6 {[%clk 0:02:36]} 11. Rc1 {[%clk 0:02:10]}  Bb7 {[%clk 0:02:36]} 12. Ne2 {[%clk 0:02:10]}  g5 {[%clk 0:02:33]} 13. Ne5 {[%clk 0:02:10]}  Nxe5 {[%clk 0:02:29]} 14. dxe5 {[%clk 0:02:11]}  Be7 {[%clk 0:02:22]} 15. Nd4 {[%clk 0:02:04]}  Qd7 {[%clk 0:02:17]} 16. f3 {[%clk 0:02:00]}  Nc5 {[%clk 0:02:10]} 17. b4 {[%clk 0:02:00]}  Na6 {[%clk 0:02:10]} 18. cxd5 {[%clk 0:01:57]}  cxd5 {[%clk 0:02:07]} 19. a3 {[%clk 0:01:57]}  Rac8 {[%clk 0:02:06]} 20. Qb3 {[%clk 0:01:53]}  Kf7 {[%clk 0:02:04]} 21. e4 {[%clk 0:01:46]}  Rxc1 {[%clk 0:02:01]} 22. Rxc1 {[%clk 0:01:46]}  dxe4 {[%clk 0:01:56]} 23. fxe4 {[%clk 0:01:46]}  Bxe4 {[%clk 0:01:56]} 24. Bxe4 {[%clk 0:01:45]}  fxe4 {[%clk 0:01:56]} 25. Nxe6 {[%clk 0:01:41]}  Ke8 {[%clk 0:01:48]} 26. Nxf8 {[%clk 0:01:37]}  Bxf8 {[%clk 0:01:49]} 27. Rd1 {[%clk 0:01:36]}  Qg4 {[%clk 0:01:45]} 28. Qa4+ {[%clk 0:01:11]}  Ke7 {[%clk 0:01:45]} 29. Re1 {[%clk 0:01:06]}  Nc7 {[%clk 0:01:30]} 30. Qxa7 {[%clk 0:01:03]}  Kd8 {[%clk 0:01:20]} 31. Qxb6 {[%clk 0:00:57]}  Qf3 {[%clk 0:01:10]} 32. Rf1 {[%clk 0:00:52]} 1-0


[Site "https://www.chess.com"]

[Event "Titled Tuesday Blitz September 28 2021"]
[White "Lysyj, Igor"]
[Black "Pourkashiyan, Atousa"]
[WhiteFideId "4150120"]
[BlackFideId "12502014"]
[WhiteElo "2660"]
[BlackElo "2285"]
[Result "1-0"]
[Round "01"]
[TimeControl "180+1"]
[Date "2021.09.28"]
[WhiteClock "0:01:14"]
[BlackClock "0:00:16"]

1. d4 {[%clk 0:02:58]}  Nf6 {[%clk 0:02:57]} 2. c4 {[%clk 0:02:58]}  e6 {[%clk 0:02:58]} 3. Nf3 {[%clk 0:02:57]}  d5 {[%clk 0:02:57]} 4. g3 {[%clk 0:02:57]}  Be7 {[%clk 0:02:45]} 5. Bg2 {[%clk 0:02:55]}  O-O {[%clk 0:02:45]} 6. b3 {[%clk 0:02:52]}  c5 {[%clk 0:02:30]} 7. O-O {[%clk 0:02:50]}  Nc6 {[%clk 0:02:24]} 8. cxd5 {[%clk 0:02:47]}  exd5 {[%clk 0:02:18]} 9. Bb2 {[%clk 0:02:45]}  Bg4 {[%clk 0:01:57]} 10. Ne5 {[%clk 0:02:30]}  Be6 {[%clk 0:01:53]} 11. Nxc6 {[%clk 0:02:26]}  bxc6 {[%clk 0:01:54]} 12. dxc5 {[%clk 0:02:10]}  Bxc5 {[%clk 0:01:54]} 13. Nc3 {[%clk 0:02:09]}  Qe7 {[%clk 0:01:44]} 14. Rc1 {[%clk 0:02:08]}  Ba3 {[%clk 0:01:37]} 15. Qd2 {[%clk 0:02:06]}  Bxb2 {[%clk 0:01:35]} 16. Qxb2 {[%clk 0:02:05]}  Rac8 {[%clk 0:01:27]} 17. Na4 {[%clk 0:02:05]}  c5 {[%clk 0:01:22]} 18. Qa3 {[%clk 0:02:04]}  Nd7 {[%clk 0:01:08]} 19. e3 {[%clk 0:02:03]}  Rfe8 {[%clk 0:00:58]} 20. Rfd1 {[%clk 0:02:03]}  Qd6 {[%clk 0:00:24]} 21. Nc3 {[%clk 0:01:59]}  Nb6 {[%clk 0:00:20]} 22. Nb5 {[%clk 0:01:38]}  Qb8 {[%clk 0:00:20]} 23. Qxa7 {[%clk 0:01:34]}  Qxa7 {[%clk 0:00:20]} 24. Nxa7 {[%clk 0:01:34]}  Ra8 {[%clk 0:00:21]} 25. Nb5 {[%clk 0:01:33]}  c4 {[%clk 0:00:22]} 26. Nc7 {[%clk 0:01:28]}  cxb3 {[%clk 0:00:17]} 27. axb3 {[%clk 0:01:25]}  Rec8 {[%clk 0:00:17]} 28. Nxa8 {[%clk 0:01:25]}  Rxa8 {[%clk 0:00:18]} 29. Rc6 {[%clk 0:01:23]}  Nd7 {[%clk 0:00:18]} 30. Bxd5 {[%clk 0:01:21]}  Bxd5 {[%clk 0:00:18]} 31. Rxd5 {[%clk 0:01:20]}  Nf6 {[%clk 0:00:19]} 32. Rd4 {[%clk 0:01:20]}  h5 {[%clk 0:00:19]} 33. h3 {[%clk 0:01:20]}  Ra1+ {[%clk 0:00:19]} 34. Kg2 {[%clk 0:01:20]}  Ra2 {[%clk 0:00:19]} 35. b4 {[%clk 0:01:19]}  Rb2 {[%clk 0:00:19]} 36. Rc8+ {[%clk 0:01:18]}  Kh7 {[%clk 0:00:19]} 37. Rc5 {[%clk 0:01:18]}  Kg6 {[%clk 0:00:19]} 38. b5 {[%clk 0:01:17]}  Rb1 {[%clk 0:00:16]} 39. g4 {[%clk 0:01:14]}  hxg4 {[%clk 0:00:16]} 40. hxg4 {[%clk 0:01:15]}  Kh6 {[%clk 0:00:16]} 41. g5+ {[%clk 0:01:14]} 1-0


[Site "https://www.chess.com"]

[Event "Titled Tuesday Blitz September 28 2021"]
[White "Mgeladze, Tamaz"]
[Black "Navalgund, Niranjan"]
[WhiteFideId "13601202"]
[BlackFideId "5030854"]
[WhiteElo "2258"]
[BlackElo "2290"]
[Result "1-0"]
[Round "01"]
[TimeControl "180+1"]
[Date "2021.09.28"]
[WhiteClock "0:00:11"]
[BlackClock "0:01:07"]

1. c4 {[%clk 0:01:39]}  e5 {[%clk 0:02:58]} 2. g3 {[%clk 0:01:39]}  h5 {[%clk 0:02:57]} 3. Nf3 {[%clk 0:01:39]}  Nc6 {[%clk 0:02:56]} 4. Bg2 {[%clk 0:01:39]}  Be7 {[%clk 0:02:55]} 5. h4 {[%clk 0:01:39]}  Nf6 {[%clk 0:02:55]} 6. Nc3 {[%clk 0:01:38]}  Ng4 {[%clk 0:02:55]} 7. d4 {[%clk 0:01:38]}  exd4 {[%clk 0:02:54]} 8. Nxd4 {[%clk 0:01:39]}  Bc5 {[%clk 0:02:54]} 9. e3 {[%clk 0:01:35]}  Qf6 {[%clk 0:02:54]} 10. O-O {[%clk 0:01:34]}  Nxd4 {[%clk 0:02:51]} 11. exd4 {[%clk 0:01:35]}  Qxd4 {[%clk 0:02:51]} 12. Re1+ {[%clk 0:01:34]}  Kd8 {[%clk 0:02:52]} 13. Be3 {[%clk 0:01:30]}  Qxd1 {[%clk 0:02:50]} 14. Raxd1 {[%clk 0:01:28]}  Nxe3 {[%clk 0:02:49]} 15. fxe3 {[%clk 0:01:29]}  d6 {[%clk 0:02:49]} 16. Nd5 {[%clk 0:01:27]}  Bg4 {[%clk 0:02:47]} 17. Rd3 {[%clk 0:01:22]}  Re8 {[%clk 0:02:46]} 18. b4 {[%clk 0:01:21]}  Bf5 {[%clk 0:02:35]} 19. Rdd1 {[%clk 0:01:15]}  c6 {[%clk 0:02:29]} 20. bxc5 {[%clk 0:01:15]}  cxd5 {[%clk 0:02:29]} 21. Rxd5 {[%clk 0:01:15]}  Be6 {[%clk 0:02:28]} 22. Rxd6+ {[%clk 0:01:11]}  Kc7 {[%clk 0:02:29]} 23. Rb1 {[%clk 0:01:05]}  Rab8 {[%clk 0:02:17]} 24. Rd4 {[%clk 0:01:03]}  Bf5 {[%clk 0:02:14]} 25. Rb3 {[%clk 0:01:01]}  Re5 {[%clk 0:02:13]} 26. Rd5 {[%clk 0:00:57]}  f6 {[%clk 0:02:09]} 27. Rxe5 {[%clk 0:00:54]}  fxe5 {[%clk 0:02:10]} 28. Bd5 {[%clk 0:00:54]}  b6 {[%clk 0:02:01]} 29. cxb6+ {[%clk 0:00:53]}  axb6 {[%clk 0:02:02]} 30. Ra3 {[%clk 0:00:49]}  Kd6 {[%clk 0:02:01]} 31. Ra7 {[%clk 0:00:47]}  g6 {[%clk 0:02:01]} 32. e4 {[%clk 0:00:46]}  Bg4 {[%clk 0:01:54]} 33. Rg7 {[%clk 0:00:45]}  b5 {[%clk 0:01:52]} 34. Rxg6+ {[%clk 0:00:44]}  Kc5 {[%clk 0:01:52]} 35. Rc6+ {[%clk 0:00:42]}  Kd4 {[%clk 0:01:52]} 36. c5 {[%clk 0:00:42]}  Rf8 {[%clk 0:01:49]} 37. Rc7 {[%clk 0:00:37]}  Rf3 {[%clk 0:01:45]} 38. c6 {[%clk 0:00:33]}  Ke3 {[%clk 0:01:43]} 39. Rf7 {[%clk 0:00:33]}  Rxg3+ {[%clk 0:01:43]} 40. Kh2 {[%clk 0:00:32]}  Rh3+ {[%clk 0:01:42]} 41. Kg2 {[%clk 0:00:32]}  Rxh4 {[%clk 0:01:42]} 42. c7 {[%clk 0:00:31]}  Bc8 {[%clk 0:01:37]} 43. Rf3+ {[%clk 0:00:25]}  Kd4 {[%clk 0:01:37]} 44. Rf8 {[%clk 0:00:25]}  Rg4+ {[%clk 0:01:35]} 45. Kf3 {[%clk 0:00:24]}  Rf4+ {[%clk 0:01:26]} 46. Rxf4 {[%clk 0:00:23]}  exf4 {[%clk 0:01:27]} 47. Kxf4 {[%clk 0:00:24]}  h4 {[%clk 0:01:28]} 48. a3 {[%clk 0:00:19]}  h3 {[%clk 0:01:23]} 49. Kg3 {[%clk 0:00:20]}  Ke5 {[%clk 0:01:24]} 50. Bc6 {[%clk 0:00:19]}  Kd6 {[%clk 0:01:22]} 51. Bxb5 {[%clk 0:00:16]}  Kxc7 {[%clk 0:01:23]} 52. Bf1 {[%clk 0:00:16]}  Bb7 {[%clk 0:01:19]} 53. Kf4 {[%clk 0:00:14]}  Bc8 {[%clk 0:01:16]} 54. Kg3 {[%clk 0:00:11]}  Kd6 {[%clk 0:01:15]} 55. Bxh3 {[%clk 0:00:11]}  Bb7 {[%clk 0:01:16]} 56. Kf4 {[%clk 0:00:09]}  Kc5 {[%clk 0:01:13]} 57. Bf1 {[%clk 0:00:08]}  Kd4 {[%clk 0:01:11]} 58. e5 {[%clk 0:00:08]}  Bc8 {[%clk 0:01:12]} 59. a4 {[%clk 0:00:08]}  Kc5 {[%clk 0:01:10]} 60. a5 {[%clk 0:00:09]}  Kd5 {[%clk 0:01:07]} 61. a6 {[%clk 0:00:08]}  Kc5 {[%clk 0:01:07]} 62. a7 {[%clk 0:00:08]}  Bb7 {[%clk 0:01:08]} 63. Bd3 {[%clk 0:00:07]}  Kb6 {[%clk 0:01:06]} 64. Be4 {[%clk 0:00:08]}  Kxa7 {[%clk 0:01:04]} 65. Bxb7 {[%clk 0:00:07]}  Kxb7 {[%clk 0:01:05]} 66. Kf5 {[%clk 0:00:08]}  Kc7 {[%clk 0:01:06]} 67. Kf6 {[%clk 0:00:08]}  Kd8 {[%clk 0:01:06]} 68. Kf7 {[%clk 0:00:09]}  Kd7 {[%clk 0:01:07]} 69. e6+ {[%clk 0:00:10]}  Kd6 {[%clk 0:01:07]} 70. e7 {[%clk 0:00:10]}  Kc5 {[%clk 0:01:08]} 71. e8=Q {[%clk 0:00:11]}  Kb4 {[%clk 0:01:07]} 72. Qc8 {[%clk 0:00:11]} 1-0


[Site "https://www.chess.com"]